Department Family,Entity,Payment Date,Expense Type,Expense Area,Supplier Name,Transaction Number,Amount,Description
CMA,CMA,18/04/2019,#REF!,#REF!,23 Red Limited,20027853,"27,982.00",Campaign Fees
CMA,CMA,24/04/2019,Estates Professional Services,Property Transformation,AVISON YOUNG,20028245,"195,702.24",Property transformational project 
CMA,CMA,18/04/2019,Capital - Asset Under Construction,Capital,BlackRainbow Ltd,20026610,"41,450.00",IT Professional Services
CMA,CMA,04/04/2019,#REF!,#REF!,CAMDEN COUNCIL NNDR,20027816,"116,590.00",RATES Victoria House - APRIL 2019
CMA,CMA,04/04/2019,#REF!,#REF!,CAMDEN COUNCIL NNDR,20027817,"66,810.00",RATES Victoria House - APRIL 2019
CMA,CMA,29/04/2019,#REF!,#REF!,CAMDEN COUNCIL NNDR,20028308,"66,810.00",RATES Victoria House - APRIL 2019
CMA,CMA,29/04/2019,#REF!,#REF!,CAMDEN COUNCIL NNDR,20028309,"116,590.00",RATES Victoria House - APRIL 2019
CMA,CMA,12/04/2019,#REF!,UK Ex EU,CJA Group Ltd,20027945,"39,159.02",Recruitment advertising costs
CMA,CMA,15/04/2019,#REF!,Human Resources,CJA Group Ltd,20027944,"30,254.94",Recruitment advertising costs
CMA,CMA,04/04/2019,IT Professional Services,Information Technology,DELTASCHEME LTD,20027481,"93,917.28",IT infrastucture and software support
CMA,CMA,29/04/2019,#REF!,State Aid,DELTASCHEME LTD,20028312,"53,794.32",IT Professional Services
CMA,CMA,18/04/2019,#REF!,Information Technology,e2e-assure,20028011,"39,207.00",Security Maintenance
CMA,CMA,04/04/2019,#REF!,UK Ex EU,Ergo Computing UK Ltd,20027860,"59,273.34",Capital - IT Hardware
CMA,CMA,08/04/2019,#REF!,Information Technology,Ergo Computing UK Ltd,20027896,"88,381.20",Capital - IT Hardware
CMA,CMA,12/04/2019,#REF!,UK Ex EU,Ergo Computing UK Ltd,20027895,"227,126.06",Capital - IT Hardware
CMA,CMA,08/04/2019,#REF!,Mergers,GFK UK Limited,20027897,"30,439.20",Market Research Services
CMA,CMA,25/04/2019,#REF!,Mergers,GFK UK Limited,20028284,"37,390.20",Market Research Services
CMA,CMA,18/04/2019,#REF!,Finance,Government Internal Audit Agency,20028166,"25,500.00",Audit Fees 
CMA,CMA,25/04/2019,#REF!,Legal Advisory,House of Commons,20028298,"25,718.51",Professional Fees
CMA,CMA,25/04/2019,Professional Services - Gen. Management,Cartels,IntaForensics Ltd,20027864,"30,009.54",Professional Fees
CMA,CMA,18/04/2019,IT Professional Services,Information Technology,iSYSTEMS Integration Ltd,20027865,"38,400.00",IT Professional Services
CMA,CMA,08/04/2019,Rent (inc Devolved Nations),Property Transformation,JONES LANG LASALLE,20027790,"37,625.68","Commercial rent, service charge, electricity"
CMA,CMA,12/04/2019,#REF!,Property Transformation,JONES LANG LASALLE,20027985,"40,035.27","Commercial rent, service charge, electricity"
CMA,CMA,12/04/2019,#REF!,Property Transformation,JONES LANG LASALLE,20028012,"97,317.24","Commercial rent, service charge, electricity"
CMA,CMA,12/04/2019,#REF!,Property Transformation,JONES LANG LASALLE,20028013,"68,704.37","Commercial rent, service charge, electricity"
CMA,CMA,12/04/2019,#REF!,Property Transformation,JONES LANG LASALLE,20028081,"97,662.61","Commercial rent, service charge, electricity"
CMA,CMA,08/04/2019,#REF!,"Data, Technology and Analytics Unit","Matrix Insight Limited, trading as Optimity Advisors",20027907,"27,600.00",Services to support setting up the Data Unit
CMA,CMA,18/04/2019,#REF!,Property Transformation,Morgan Sindall Construction & Infrastructure Ltd,20028151,"6,143,880.00",Property transformational project 
CMA,CMA,12/04/2019,travel,Finance,Redfern Travel LTD,20028014,"64,876.33",Travel Costs
CMA,CMA,08/04/2019,#REF!,Property Transformation,Softcat Plc,20027872,"60,805.61",IT infrastucture and software support
CMA,CMA,12/04/2019,#REF!,Property Transformation,Softcat Plc,20027819,"67,311.90",IT infrastucture and software support
CMA,CMA,08/04/2019,#REF!,Information Technology,Software Box Ltd,20027910,"33,874.11",IT Maintenance & support -Software
CMA,CMA,18/04/2019,#REF!,Information Technology,Software Box Ltd,20028069,"83,311.93",IT Maintenance & support -Software
CMA,CMA,18/04/2019,#REF!,Information Technology,Software Box Ltd,20028160,"76,475.88",IT Maintenance & support -Software
CMA,CMA,18/04/2019,#REF!,UK Ex EU,Software Box Ltd,20028170,"45,630.00",IT Maintenance & support -Software
CMA,CMA,18/04/2019,#REF!,Property Transformation,STONE COMPUTERS LTD,20027870,"210,401.40",Capital - IT Hardware
CMA,CMA,12/04/2019,IT Infrastructure Equipment (Purchases),Information Technology,VIRGIN MEDIA PAYMENTS LIMITED,20027877,"38,162.41",IT infrastucture and software support
CMA,CMA,12/04/2019,IT Infrastructure Equipment (Purchases),Information Technology,VIRGIN MEDIA PAYMENTS LIMITED,20027879,"48,336.20",IT infrastucture and software support
CMA,CMA,04/04/2019,#REF!,Information Technology,VISIONIST LIMITED,20027822,"39,328.50",IT infrastucture and software support
CMA,CMA,04/04/2019,#REF!,Information Technology,XMA Limited,20027851,"474,768.00",Communication Equipment
CMA,CMA,15/04/2019,IT Infrastructure Equipment (Purchases),Information Technology,XMA Limited,20027977,"94,953.60",Communication Equipment
,,,,,,,"9,301,565.89",
